bitfinex/quotes_ETHUSD_20251124
["timestamp","ask_amount","ask_price","bid_price","bid_amount"]
[1763998706910,0.0012,2845.1,2845.0,8.89111553]
[1763998707819,0.002,2845.4,2845.1,1.13109811]
[1763998708022,0.002,2845.4,2845.3,0.896704]
[1763998708200,0.6805,2847.0,2845.9,0.77559411]
[1763998708586,0.6805,2847.0,2845.9,1.21679411]
[1763998708787,0.497,2846.9,2845.5,0.72559411]
[1763998708982,0.497,2846.9,2845.4,7.48103819]
[1763998709219,0.497,2846.9,2845.6,0.05]
[1763998709530,0.497,2846.9,2845.5,1.91989793]
[1763998709531,0.497,2846.9,2845.9,0.05]
[1763998709731,0.497,2846.9,2845.4,0.4412]
[1763998709931,0.405504,2846.8,2845.0,0.05]
[1763998710109,0.405504,2846.6,2845.0,0.4412]
[1763998710634,0.497,2846.5,2845.2,0.05]
[1763998711434,0.497,2846.5,2844.7,1.15119411]
[1763998711435,0.002,2845.1,2844.8,0.4412]
[1763998711594,0.002,2845.1,2844.7,0.1956]
[1763998712195,0.002,2845.1,2845.0,0.4412]
[1763998713510,0.002,2845.1,2845.0,0.8824]
[1763998714041,0.002,2845.1,2845.0,8.6978323]
[1763998714339,0.002,2845.1,2845.0,9.56761553]
[1763998715665,0.002,2845.1,2845.0,1.60799411]
[1763998715807,0.002,2845.1,2845.0,1.65799411]
[1763998717232,0.002,2845.1,2844.7,0.1956]
[1763998717729,0.002,2845.1,2844.7,0.6368]
[1763998717934,0.002,2845.1,2845.0,0.4412]
[1763998718334,0.002,2845.1,2845.0,0.8824]
[1763998718947,0.002,2845.1,2845.0,0.4412]
[1763998719464,0.002,2845.1,2844.7,0.1956]
[1763998719955,0.002,2845.1,2845.0,0.4412]
[1763998720334,0.002,2845.1,2844.7,0.1956]
[1763998721281,0.002,2845.1,2845.0,1.16679411]
[1763998721572,0.002,2845.1,2845.0,2.52629253]
[1763998722151,0.002,2845.1,2845.0,1.80069842]
[1763998722358,0.002,2845.1,2845.0,0.4412]
[1763998722751,0.002,2845.1,2845.0,0.9324]
[1763998723255,0.002,2845.1,2845.0,0.4412]
[1763998723564,0.002,2845.1,2844.7,0.1956]
[1763998723765,0.002,2845.1,2845.0,0.4412]
[1763998724148,0.002,2845.1,2844.7,0.1956]
[1763998725175,0.002,2845.1,2844.3,0.05]
[1763998725176,0.6373,2844.8,2844.3,0.05]
[1763998725534,0.1803,2845.0,2844.3,0.05]
[1763998726237,0.002,2845.1,2844.4,0.47635679]
[1763998726468,0.002,2845.1,2844.6,0.77559411]
[1763998726672,0.002,2845.1,2845.0,0.4412]
[1763998727248,0.002,2845.1,2845.0,0.47634938]
[1763998727449,0.002,2845.1,2845.0,0.8824]
[1763998727693,0.002,2845.1,2845.0,0.4412]
[1763998728044,0.002,2845.1,2845.0,0.8824]
[1763998728446,0.002,2845.1,2845.0,0.9324]
[1763998729076,0.002,2845.1,2845.0,1.12119941]
[1763998729451,0.0012,2845.1,2845.0,1.12119941]
[1763998732354,0.0012,2845.1,2845.0,0.67999941]
[1763998732990,0.0012,2845.1,2845.0,1.12119941]
[1763998733488,0.0012,2845.1,2845.0,1.07119941]
[1763998733659,0.0012,2845.1,2845.0,1.12119941]
[1763998734082,0.0012,2845.1,2845.0,1.07119941]
[1763998734484,0.0012,2845.1,2845.0,1.12119941]
[1763998735618,0.0012,2845.1,2845.0,9.532172]
[1763998735791,0.0012,2845.1,2845.0,7.365232]
[1763998735992,0.0012,2845.1,2845.0,1.84679352]
[1763998736205,0.0012,2845.1,2845.0,2.07679352]
[1763998736602,0.0012,2845.1,2845.0,1.84679352]
[1763998736807,0.0012,2845.1,2845.0,7.759614]
[1763998737184,0.0012,2845.1,2845.0,8.391876]
[1763998737783,0.0012,2845.1,2845.0,5.591732]
[1763998737985,0.0012,2845.1,2845.0,9.494156]
[1763998738723,0.0012,2845.1,2845.0,9.415413]
[1763998739020,0.0012,2845.1,2845.0,5.591732]
[1763998739721,0.0012,2845.1,2845.0,13.98911]
[1763998739925,0.0012,2845.1,2845.0,8.72720952]
[1763998740128,0.0012,2845.1,2845.0,12.472148]
[1763998740425,0.002,2845.4,2845.3,1.18109811]
[1763998740633,0.002,2845.4,2845.3,1.89175942]
[1763998740794,0.002,2845.4,2845.3,8.32196811]
[1763998740975,0.002,2845.4,2845.3,9.78437711]
[1763998741428,0.4616,2846.9,2845.4,1.13109811]
[1763998741625,0.94623231,2847.9,2846.9,0.539]
[1763998741809,0.6419,2848.3,2847.4,0.4412]
[1763998741985,0.6419,2848.3,2847.5,0.23]
[1763998741986,0.4616,2847.8,2847.5,0.23]
[1763998742524,0.4763,2847.6,2846.9,0.23]
[1763998742686,0.445,2847.0,2846.9,0.23]
[1763998742887,0.1803,2848.3,2847.1,0.05]
[1763998742888,0.4616,2848.2,2847.1,0.05]
[1763998743115,0.4616,2848.2,2846.9,1.1124]
[1763998743116,0.4616,2848.2,2847.3,0.05]
[1763998743301,0.4616,2848.2,2847.4,0.23]
[1763998743500,0.4616,2848.2,2847.5,0.23]
[1763998743701,0.4616,2848.2,2847.6,0.23]
[1763998743901,0.4616,2848.2,2847.3,0.1934]
[1763998744102,0.4616,2848.2,2847.4,0.23]
[1763998744307,0.4616,2848.2,2847.5,0.23]
[1763998744623,0.4616,2848.5,2847.8,0.05]
[1763998744799,0.4616,2848.5,2847.5,0.23]
[1763998744800,0.4616,2848.5,2847.9,0.23]
[1763998746126,0.4616,2848.8,2847.9,0.23]
[1763998746490,0.642,2848.6,2847.9,0.23]
[1763998746691,0.4763,2848.0,2847.5,0.05]
[1763998746919,0.4763,2848.0,2847.6,0.23]
[1763998747121,0.4616,2848.5,2847.6,0.23]
[1763998747391,0.4616,2848.5,2847.5,0.05]
[1763998747599,0.4616,2848.5,2847.7,0.23]
[1763998748301,0.6567,2847.8,2847.0,0.1934]
[1763998748511,0.6567,2847.8,2847.3,0.23]
[1763998748715,0.6567,2847.8,2846.5,0.79201582]
[1763998748716,0.4449,2847.4,2846.5,0.79201582]
[1763998748902,0.476,2847.3,2846.6,0.23]
[1763998749108,0.4616,2847.7,2846.7,0.7607225]
[1763998749294,0.1804,2847.8,2847.2,0.05]
[1763998749501,0.1804,2847.8,2847.2,0.28]
[1763998749908,0.642,2847.8,2847.2,0.23]
[1763998750225,0.4763,2847.3,2847.1,0.23]
[1763998750431,0.9065,2847.2,2846.5,0.79201582]
[1763998750604,0.4449,2847.2,2846.7,0.05]
[1763998751137,0.4616,2847.5,2846.7,0.05]
[1763998751296,0.1804,2847.8,2847.0,0.05]
[1763998751496,0.4616,2847.7,2847.0,0.05]
[1763998751710,0.4616,2847.7,2846.9,0.05]
[1763998753210,0.4608,2847.7,2846.7,0.72559411]
[1763998753428,0.1804,2847.8,2847.2,0.05]
[1763998754032,0.002,2848.5,2847.4,0.05]
[1763998754597,0.002,2848.5,2847.5,0.03511852]
[1763998754801,0.002,2848.5,2847.6,0.23]
[1763998755034,0.002,2848.5,2847.8,0.05]
[1763998755237,0.4616,2848.4,2847.6,0.23]
[1763998755410,0.4616,2848.4,2847.6,0.28]
[1763998755610,0.6567,2847.7,2847.4,0.23]
[1763998755830,0.6567,2847.7,2847.0,0.23]
[1763998756862,0.6567,2847.7,2847.1,0.28]
[1763998756863,1.1183,2847.7,2847.1,0.28]
[1763998757324,0.4616,2847.6,2847.1,0.23]
[1763998757527,0.4616,2847.6,2846.8,0.05]
[1763998757738,0.4616,2847.6,2846.9,0.23]
[1763998758050,0.4616,2847.6,2847.0,0.23]
[1763998758515,0.4616,2848.1,2847.0,0.23]
[1763998758719,0.4616,2848.1,2847.5,0.05]
[1763998759018,0.4616,2848.0,2847.0,0.23]
[1763998759217,0.4616,2848.0,2847.0,3.74245164]
[1763998759456,0.1804,2847.9,2847.2,0.405504]
[1763998759662,0.1804,2847.9,2847.1,0.72680458]
[1763998759857,0.1804,2847.9,2847.3,0.05]
[1763998760061,0.1804,2847.9,2847.4,0.05]
[1763998760444,0.6624,2847.9,2847.4,0.229]
[1763998760645,0.482,2848.3,2847.4,0.229]
[1763998761023,0.1836,2847.5,2847.0,0.05]
[1763998761229,0.6386,2847.5,2847.1,0.229]
[1763998761631,1.1206,2847.5,2846.8,0.72559411]
[1763998761831,1.1206,2847.5,2846.5,11.80549697]
[1763998761832,1.1206,2847.5,2846.9,0.279]
[1763998764562,0.6386,2847.5,2846.9,0.229]
[1763998764725,0.1836,2847.7,2846.9,0.67574315]
[1763998764932,0.1836,2847.7,2847.2,0.05]
[1763998765277,0.482,2848.1,2847.3,0.03512099]
[1763998765470,0.482,2848.4,2847.5,0.05]
[1763998765961,0.002,2848.5,2847.9,0.05]
[1763998766739,0.484,2848.5,2847.8,0.229]
[1763998766930,0.484,2848.5,2847.9,0.05]
[1763998767250,0.484,2848.5,2847.8,0.229]
[1763998767580,0.002,2847.9,2847.8,3.79048254]
[1763998767752,0.002,2847.9,2847.8,4.96768432]
[1763998767952,0.002,2847.9,2847.8,1.89820178]
[1763998768265,0.002,2847.9,2847.8,1.84820178]
[1763998768464,0.002,2847.9,2847.8,0.95459411]
[1763998768640,0.002,2847.9,2847.8,5.35007665]
[1763998768840,0.002,2847.9,2847.8,1.39659411]
[1763998769167,0.002,2847.9,2847.8,1.44659411]
[1763998769472,0.002,2847.9,2847.8,3.13445414]
[1763998769653,0.002,2847.9,2847.8,6.64593668]
[1763998769857,0.002,2847.9,2847.8,3.13445414]
[1763998770056,0.002,2847.9,2847.8,6.64593668]
[1763998770233,0.002,2847.9,2847.8,7.05144068]
[1763998770666,0.002,2847.9,2847.8,3.53995814]
[1763998771178,0.002,2847.9,2847.8,7.05144068]
[1763998771749,0.002,2847.9,2847.8,2.69245414]
[1763998771971,0.002,2847.9,2847.8,1.44659411]
[1763998772860,0.002,2847.9,2847.8,1.00459411]
[1763998773196,0.002,2847.9,2847.8,0.95459411]
[1763998773753,0.002,2847.9,2847.8,0.72559411]
[1763998773950,0.002,2847.9,2847.8,0.95459411]
[1763998774773,1.1226,2847.9,2847.8,0.72559411]
[1763998775774,1.1226,2847.9,2847.5,0.229]
[1763998775974,0.002,2847.9,2847.5,0.229]
[1763998776174,0.002,2847.9,2847.7,0.05]
[1763998776376,0.002,2847.9,2847.7,0.279]
[1763998776598,0.937,2847.8,2847.6,0.229]
[1763998777061,0.1856,2847.9,2847.6,0.229]
[1763998777997,0.002,2847.9,2847.6,0.95459411]
[1763998778196,0.002,2847.9,2847.8,0.05]
[1763998778353,0.002,2847.9,2847.8,0.4928]
[1763998778552,0.002,2847.9,2847.8,0.9356]
[1763998779153,0.002,2847.9,2847.8,0.05]
[1763998779357,0.002,2847.9,2847.8,0.229]
[1763998779603,0.6406,2847.9,2847.5,0.05]
[1763998779758,0.6406,2847.9,2847.7,0.229]
[1763998780253,0.1856,2847.9,2847.7,0.229]
[1763998780460,0.002,2847.9,2847.7,0.229]
[1763998780966,0.1856,2847.9,2847.5,0.05]
[1763998781170,0.1856,2847.9,2847.7,0.229]
[1763998781583,0.002,2847.9,2847.7,0.279]
[1763998781770,0.002,2847.9,2847.8,0.05]
[1763998782293,0.002,2847.9,2847.8,1.14971482]
[1763998782504,0.1804,2849.0,2847.9,6.80101]
[1763998782660,0.1804,2849.0,2848.5,0.05]
[1763998782982,0.1804,2849.0,2848.5,0.279]
[1763998784382,0.482,2848.9,2848.5,0.279]
[1763998786330,0.482,2848.9,2848.5,0.27093]
[1763998787003,0.482,2848.9,2848.6,0.229]
[1763998787408,0.455,2848.7,2848.6,0.229]
[1763998788091,0.455,2848.7,2847.8,1.16939411]
[1763998788286,0.9366,2848.7,2848.1,0.05]
[1763998788515,0.9366,2848.7,2847.9,0.229]
[1763998788824,0.4816,2848.6,2847.9,0.279]
[1763998789320,0.4816,2848.6,2847.9,0.229]
[1763998789487,0.4816,2848.6,2848.0,0.51859402]
[1763998789688,0.4816,2848.6,2847.9,0.279]
[1763998790226,0.4816,2848.6,2847.9,0.05]
[1763998790523,0.4816,2848.6,2847.9,0.229]
[1763998791090,0.4816,2848.6,2847.8,0.72659411]
[1763998791287,0.6946,2847.9,2847.8,0.001]
[1763998791806,1.1809,2847.9,2847.8,0.001]
[1763998792798,0.6946,2847.9,2847.8,0.001]
[1763998792996,1.1809,2847.9,2847.8,0.001]
[1763998793927,0.4863,2848.2,2847.8,0.001]
[1763998794227,0.1969,2848.1,2847.8,0.001]
[1763998794429,0.4977,2847.9,2847.8,0.001]
[1763998794916,0.984,2847.9,2847.8,0.001]
[1763998796730,0.4863,2848.4,2847.8,1.16939411]
[1763998797960,0.6946,2847.9,2847.8,0.72659411]
[1763998798099,0.6946,2847.9,2846.9,0.001]
[1763998798100,1.02336749,2847.9,2846.9,0.001]
[1763998798298,0.1969,2847.9,2847.2,7.01248127]
[1763998798528,0.1969,2847.9,2846.9,0.001]
[1763998798529,0.1969,2847.9,2847.3,7.7137294]
[1763998798707,0.1969,2847.9,2847.4,0.229]
[1763998799396,0.93913937,2849.6,2847.8,0.05]
[1763998799397,0.4863,2848.3,2847.8,0.05]
[1763998799592,0.4863,2848.3,2847.8,0.279]
[1763998799831,0.4863,2848.6,2848.0,0.05]
[1763998800533,0.6687,2849.0,2848.1,0.84919411]
[1763998800733,0.4855,2848.9,2848.2,0.229]
[1763998801324,0.4977,2848.3,2847.8,0.72914813]
[1763998801633,0.3782,2848.1,2847.8,0.229]
[1763998802252,0.6946,2847.9,2846.9,7.01348127]
[1763998802415,0.6946,2847.9,2847.2,0.95459411]
[1763998802736,0.6946,2847.9,2847.4,0.05]
[1763998802939,0.6946,2847.9,2847.5,0.229]
[1763998803243,0.4863,2848.5,2847.8,1.16919411]
[1763998803450,0.6687,2849.0,2848.3,0.05]
[1763998803739,0.1824,2849.0,2848.6,0.72559411]
[1763998803904,0.002,2849.0,2848.7,0.05]
[1763998804546,0.002,2849.0,2848.7,0.229]
[1763998804547,0.4977,2848.8,2848.7,0.229]
[1763998805244,0.984,2848.8,2848.1,0.229]
[1763998805406,0.3603,2848.7,2848.1,0.229]
[1763998805602,0.1969,2848.9,2848.3,0.05]
[1763998805809,0.1969,2848.9,2848.3,0.86414754]
[1763998806014,0.002,2848.6,2848.5,7.73807538]
[1763998806213,0.002,2848.6,2848.5,7.96707538]
[1763998806803,0.002,2848.6,2848.5,8.01707538]
[1763998807513,0.002,2848.6,2848.5,8.46067538]
[1763998807720,0.002,2848.6,2848.5,9.24564208]
[1763998807918,0.002,2848.6,2848.5,9.01664208]
[1763998808116,0.002,2848.6,2848.5,9.24564208]
[1763998808414,0.002,2848.6,2848.5,9.68924208]
[1763998808603,0.002,2848.6,2848.5,10.18284208]
[1763998809225,0.002,2848.6,2848.5,13.6934617]
[1763998809428,0.002,2848.6,2848.5,9.73924208]
[1763998809628,0.002,2848.6,2848.5,10.58834608]
[1763998809837,0.4863,2849.7,2848.6,1.13109811]
[1763998810042,0.4863,2849.7,2849.1,0.05]
[1763998810245,0.4863,2849.7,2849.1,0.279]
[1763998810410,0.4863,2849.7,2849.0,0.72559411]
[1763998810617,0.4977,2849.1,2848.2,0.05]
[1763998810813,0.4863,2849.7,2848.2,0.05]
[1763998810814,0.3603,2849.0,2848.3,1.29879879]
[1763998811317,0.6832,2848.9,2848.3,1.29879879]
[1763998811612,0.4963,2848.4,2847.8,7.06348127]
[1763998811813,0.6832,2848.9,2847.9,0.95459411]
[1763998811814,0.3616,2848.3,2847.9,0.95459411]
[1763998812250,0.3616,2848.3,2847.9,0.229]
[1763998812615,0.3616,2848.3,2847.9,1.68384224]
[1763998812916,0.3616,2848.3,2847.8,7.06348127]
[1763998812917,0.4949,2848.0,2847.8,0.001]
[1763998813115,0.1969,2847.9,2847.8,0.001]
[1763998813729,1.1809,2847.9,2847.8,0.001]
[1763998814816,0.1969,2848.9,2847.8,0.001]
[1763998814817,0.4863,2848.4,2847.8,0.72659411]
[1763998816225,0.4863,2848.4,2847.8,0.95559411]
[1763998816422,0.4863,2848.7,2847.9,0.80180754]
[1763998816636,0.6946,2847.9,2847.8,0.001]
[1763998817248,1.1809,2847.9,2847.8,0.001]
[1763998818365,0.6946,2847.9,2847.8,0.001]
[1763998818734,1.1809,2847.9,2847.8,0.001]
[1763998824333,1.1478,2847.9,2847.8,0.001]
[1763998824632,0.6938,2847.9,2847.8,0.001]
[1763998824859,1.147,2847.9,2847.8,0.001]
[1763998827266,0.9089,2847.9,2847.8,0.001]
[1763998827874,0.4557,2847.9,2847.8,0.001]
[1763998828105,0.195,2848.0,2847.8,0.001]
[1763998828414,0.4532,2848.3,2847.8,0.001]
[1763998828569,0.002,2848.6,2847.8,0.001]
[1763998828570,0.6507,2847.9,2847.8,0.001]
[1763998829101,0.195,2847.9,2847.8,0.001]
[1763998829299,0.4532,2848.2,2847.8,0.001]
[1763998830669,0.6507,2847.9,2847.8,0.001]
[1763998831196,1.1039,2847.9,2847.8,0.001]
[1763998832100,1.66079636,2847.9,2847.5,0.001]
[1763998832300,0.4339,2847.6,2847.5,0.001]
[1763998832724,0.8871,2847.6,2847.5,0.001]
[1763998832871,0.4339,2847.6,2847.5,0.001]
[1763998833177,0.8871,2847.6,2847.5,0.001]
[1763998833521,0.195,2847.9,2847.5,0.001]
[1763998833812,0.6482,2847.9,2847.5,0.001]
[1763998834375,0.4557,2847.6,2847.5,0.001]
[1763998834570,0.9089,2847.6,2847.5,0.001]
[1763998838506,0.195,2847.9,2847.5,0.001]
[1763998839194,0.6482,2847.9,2847.5,0.001]
[1763998839397,0.4557,2847.6,2847.5,0.001]
[1763998839636,0.9089,2847.6,2847.5,0.001]
[1763998840753,0.6482,2847.9,2847.5,0.001]
[1763998841110,0.4532,2847.8,2847.5,0.001]
[1763998841727,0.4557,2847.6,2847.5,0.001]
[1763998842154,0.9089,2847.6,2847.5,0.001]
[1763998844284,1.23788457,2847.6,2847.5,0.001]
[1763998844662,0.9089,2847.6,2847.5,0.001]
[1763998844834,1.23782371,2847.6,2847.5,0.001]
[1763998846049,0.9089,2847.6,2847.5,0.001]
[1763998847496,0.002,2847.8,2847.5,0.001]
[1763998848278,0.0012,2847.8,2847.5,0.001]
[1763998855416,0.0012,2847.8,2847.7,0.4954]
[1763998855597,0.0012,2847.8,2847.7,1.36475079]
[1763998855908,0.0012,2847.8,2847.7,0.4454]
[1763998856116,0.0012,2847.8,2847.5,0.001]
[1763998856268,0.4922,2847.8,2847.5,0.001]
[1763998856467,0.0012,2847.8,2847.5,0.001]
[1763998858807,0.4528,2847.8,2847.5,0.001]
[1763998859590,0.0012,2847.8,2847.7,0.4454]
[1763998860321,0.0012,2847.8,2847.7,0.9408]
[1763998860685,0.0012,2847.8,2847.5,0.001]
[1763998860887,0.0012,2847.8,2847.7,0.4454]
[1763998861319,0.0012,2847.8,2847.7,0.8908]
[1763998862332,0.0012,2847.8,2847.7,0.9408]
[1763998862621,0.0012,2847.8,2847.7,0.4954]
[1763998862822,0.0012,2847.8,2847.7,0.9408]
[1763998863121,0.0012,2847.8,2847.7,1.66639411]
[1763998863320,0.0012,2847.8,2847.7,0.9408]
[1763998863494,0.0012,2847.8,2847.7,1.38615904]
[1763998863699,0.0012,2847.8,2847.7,5.88747505]
[1763998864025,0.0012,2847.8,2847.7,6.257863]
[1763998864329,0.002,2848.1,2847.7,6.257863]
[1763998864539,0.4516,2849.9,2848.8,0.05]
[1763998864683,0.4516,2849.9,2848.5,0.229]
[1763998864891,0.1804,2850.0,2848.2,0.1244]
[1763998864892,0.4516,2849.7,2848.2,0.1244]
[1763998865121,1.20859803,2849.7,2848.2,0.1244]
[1763998865426,0.6773,2848.3,2847.6,0.05]
[1763998865588,0.75677059,2849.6,2847.9,0.05]
[1763998865589,0.75677059,2849.5,2847.9,0.05]
[1763998865791,0.1863,2848.6,2847.9,0.05]
[1763998867433,0.4516,2849.4,2848.5,0.5698]
[1763998867642,0.4516,2849.4,2848.6,0.4454]
[1763998867986,0.6773,2848.7,2847.6,1.22099411]
[1763998868190,0.4213,2848.6,2847.7,1.09929894]
[1763998868487,0.8729,2848.6,2847.7,0.87129894]
[1763998869001,0.4516,2848.5,2847.7,0.87129894]
[1763998869522,0.4516,2848.5,2847.5,0.001]
[1763998869523,0.6773,2847.8,2847.5,0.001]
[1763998869928,0.1863,2847.8,2847.5,0.001]
[1763998870311,0.1863,2848.7,2847.5,0.001]
[1763998870512,0.4516,2848.4,2847.6,0.05]
[1763998870810,0.1863,2848.7,2847.5,0.001]
[1763998871124,5.58527874,2849.9,2847.5,0.001]
[1763998871125,0.93913937,2850.2,2848.2,0.05]
[1763998871338,0.4516,2849.2,2847.7,0.72559411]
[1763998871624,0.1863,2848.3,2847.6,0.228]
[1763998872125,0.1855,2848.3,2847.6,0.228]
[1763998873024,0.1863,2848.6,2847.8,0.05]
[1763998873237,0.405504,2849.6,2848.2,0.5714]
[1763998873238,0.6796,2849.6,2848.2,0.5714]
[1763998873439,0.1863,2848.9,2848.2,0.1252]
[1763998874118,0.6379,2848.9,2848.2,0.1252]
[1763998875034,0.6379,2848.9,2848.2,0.1752]
[1763998876242,0.1863,2848.9,2848.2,0.1752]
[1763998876442,0.228,2849.6,2848.8,0.4462]
[1763998876443,0.4516,2849.6,2848.8,0.4462]
[1763998878217,0.4516,2849.9,2848.8,0.8924]
[1763998878416,0.32818379,2849.8,2848.8,0.8924]
[1763998878958,0.4516,2849.8,2848.9,0.4962]
[1763998879951,0.4516,2849.8,2848.9,0.05]
[1763998880152,0.4516,2849.8,2848.7,0.278]
[1763998880450,0.4516,2849.8,2848.7,0.05]
[1763998880652,0.1804,2850.0,2848.7,0.05]
[1763998880653,0.1804,2850.0,2848.9,0.05]
[1763998880872,0.669,2850.0,2848.8,0.4462]
[1763998881075,0.669,2850.0,2849.1,0.05]
[1763998881250,0.002,2849.8,2849.1,0.05]
[1763998881451,0.002,2849.8,2849.2,0.0978]
[1763998881769,0.002,2849.8,2849.4,0.05]
[1763998882552,0.002,2849.8,2849.7,0.4962]
[1763998882861,0.002,2849.8,2849.4,0.4462]
[1763998882862,0.002,2849.8,2849.5,0.05]
[1763998883179,0.002,2849.8,2849.7,0.4462]
[1763998883744,0.002,2849.8,2849.7,0.4962]
[1763998884195,0.002,2849.8,2849.7,0.22493]
[1763998886881,0.002,2849.8,2849.4,0.278]
[1763998887056,0.002,2849.8,2849.4,1.13723894]
[1763998887880,0.002,2849.8,2849.7,0.2249]
[1763998888382,0.002,2849.8,2849.7,0.3998]
[1763998889572,0.002,2849.8,2849.7,0.2249]
[1763998890985,0.002,2849.8,2849.4,1.81283305]
[1763998891191,0.002,2849.8,2849.5,0.23128331]
[1763998891390,0.002,2849.8,2849.6,0.05]
[1763998891600,0.002,2849.8,2849.7,0.2249]
[1763998892360,0.002,2849.8,2849.5,0.18128331]
[1763998892562,0.002,2849.8,2849.2,7.58879525]
[1763998892563,0.9632,2849.8,2849.2,0.0978]
[1763998892786,0.9632,2849.8,2848.8,7.49099525]
[1763998892787,0.4726,2849.3,2848.7,0.05]
[1763998892970,0.002,2849.8,2849.0,0.05]
[1763998893269,0.002,2849.8,2849.3,0.05]
[1763998893472,0.4906,2849.8,2849.3,0.05]
[1763998893653,0.4906,2849.8,2848.9,0.278]
[1763998893855,0.4906,2849.8,2849.2,0.05]
[1763998895657,0.0012,2849.8,2849.2,0.05]
[1763998896404,0.4898,2849.8,2849.2,0.05]
[1763998897173,0.4726,2849.3,2848.2,1.07879411]
[1763998897498,0.4898,2849.8,2848.2,1.07879411]
[1763998897499,0.4898,2849.8,2848.9,0.05]
[1763998898058,0.4898,2849.8,2848.6,0.05]
[1763998898259,0.4898,2849.8,2848.4,0.72559411]
[1763998898475,0.4898,2849.8,2848.5,0.84945894]
[1763998898710,0.4898,2849.8,2848.3,0.05]
[1763998899265,0.4898,2849.8,2848.6,0.05]
[1763998899592,0.4898,2849.8,2848.3,0.1749]
[1763998899593,0.4898,2849.8,2848.9,0.05]
[1763998899915,0.4898,2849.8,2848.7,0.03510373]
[1763998899916,0.4898,2849.8,2849.1,0.05]
[1763998900309,0.4726,2849.2,2848.3,0.051]
[1763998900674,0.4886,2849.1,2848.3,0.051]
[1763998900870,0.4886,2849.1,2848.4,0.228]
[1763998901571,0.4886,2849.1,2848.4,0.278]
[1763998902003,0.4886,2849.1,2848.4,0.228]
[1763998902306,0.6662,2848.5,2848.3,0.001]
[1763998902729,1.1548,2848.5,2848.3,0.001]
[1763998903077,0.9612,2848.4,2848.3,0.001]
[1763998903277,0.4726,2848.4,2848.3,0.001]
[1763998903713,0.1936,2848.5,2848.3,0.001]
[1763998904015,0.4886,2848.7,2848.3,0.001]
[1763998905513,0.1936,2849.0,2848.4,0.05]
[1763998906734,0.6822,2849.0,2848.4,0.05]
[1763998907016,0.6822,2849.0,2848.5,0.228]
[1763998907424,0.4594,2848.9,2848.5,0.228]
[1763998909088,0.4594,2849.3,2848.6,0.08510496]
[1763998909335,0.4594,2849.7,2848.6,0.1749]
[1763998909668,0.4594,2849.7,2848.9,0.05]
[1763998909830,0.4594,2849.7,2849.2,0.05]
[1763998910154,0.4594,2849.7,2849.2,0.228]
[1763998912357,0.0012,2849.8,2849.2,0.228]
[1763998912556,0.4722,2849.7,2849.2,0.228]
[1763998912930,0.4722,2849.7,2849.3,0.228]
[1763998914350,0.0012,2849.8,2849.3,0.228]
[1763998915359,0.4617,2849.4,2849.2,0.05]
[1763998915528,0.4617,2849.3,2848.3,0.001]
[1763998915864,0.1933,2848.4,2848.3,0.001]
[1763998916058,0.4617,2848.8,2848.3,0.001]
[1763998916219,0.1933,2848.6,2848.3,0.001]
[1763998916626,0.6655,2848.6,2848.3,0.001]
[1763998916828,0.1933,2848.6,2848.3,0.001]
[1763998917226,0.4617,2848.4,2848.3,0.001]
[1763998917758,0.9339,2848.4,2848.3,0.001]
[1763998918434,0.1933,2848.6,2848.3,0.001]
[1763998918631,0.6655,2848.6,2848.3,0.001]
[1763998918836,0.4617,2848.4,2848.3,0.001]
[1763998919238,0.9339,2848.4,2848.3,0.001]
[1763998919634,0.9331,2848.4,2848.3,0.001]
[1763998920742,0.1933,2849.1,2848.3,0.2267]
[1763998920952,0.1933,2849.1,2848.3,0.95022207]
[1763998922243,0.1933,2849.1,2848.4,0.228]
[1763998922444,0.1933,2849.1,2848.3,0.77452207]
[1763998922649,0.0012,2849.8,2848.3,0.77452207]
[1763998922650,0.4722,2849.6,2848.4,0.228]
[1763998922873,0.4722,2849.6,2848.7,0.05]
[1763998923379,0.4722,2849.6,2848.8,0.03510249]
[1763998923579,0.655,2848.9,2848.4,0.05]
[1763998923884,0.655,2848.9,2848.5,0.228]
[1763998924379,0.655,2848.9,2848.3,0.001]
[1763998924380,0.4617,2848.6,2848.3,0.001]
[1763998924683,0.4722,2848.8,2848.3,0.001]
[1763998924684,0.4617,2848.4,2848.3,0.001]
[1763998925187,0.4722,2848.7,2848.3,0.001]
[1763998925712,0.4617,2848.4,2848.3,0.001]
[1763998926185,0.9339,2848.4,2848.3,0.001]
[1763998927076,0.4617,2848.4,2848.3,0.001]
[1763998927899,0.9339,2848.4,2848.3,0.001]
[1763998928350,0.4722,2848.7,2848.3,0.001]
[1763998928892,0.4617,2848.4,2848.3,0.001]
[1763998929184,0.4722,2848.7,2848.3,0.001]
[1763998929766,0.1933,2849.2,2848.6,0.1757]